[Event "44th Chess Olympiad Women 2022"]
[Site "Chennai"]
[Date "2022.08.05"]
[Round "7.78"]
[White "Comas Colon, Rinelly M."]
[Black "Eversley, Kiarra"]
[Result "1/2-1/2"]
[WhiteElo "1585"]
[BlackElo "1356"]
[Annotator "NA RC"]
[PlyCount "59"]
[EventDate "2022.??.??"]
[TimeControl "60"]

1. c4 {[%emt 0:00:04]} e6 {[%emt 0:00:26]} 2. Nc3 {[%emt 0:00:14]} Nf6 {
[%emt 0:00:56]} 3. e4 {[%emt 0:02:13]} d5 {[%emt 0:03:45]} 4. e5 {[%emt 0:00:
00]} Nfd7 {[%emt 0:00:11]} 5. d4 {[%emt 0:06:26]} dxc4 {[%emt 0:01:17]} 6. Bxc4
{[%emt 0:03:21]} Nc6 {[%emt 0:01:38]} 7. Nf3 {[%emt 0:00:58]} Nb6 {[%emt 0:00:
00]} 8. Bb3 {[%emt 0:08:37]} Ne7 {[%emt 0:02:18]} 9. O-O {[%emt 0:06:40]} Ned5
{[%emt 0:01:05]} 10. Ne4 {[%emt 0:04:13]} Bd7 {[%emt 0:03:16]} 11. Bg5 {
[%emt 0:02:05]} Be7 {[%emt 0:00:38]} 12. a3 {[%emt 0:04:36]} Bc6 {[%emt 0:00:
00]} 13. Qd2 {[%emt 0:05:53]} h6 {[%emt 0:00:20]} 14. Bxe7 {[%emt 0:00:32]}
Qxe7 {[%emt 0:00:05]} 15. Rfe1 {[%emt 0:02:06]} O-O-O {[%emt 0:07:53]} 16. Rac1
{[%emt 0:01:42]} Qf8 {[%emt 0:00:36]} 17. Qa5 {[%emt 0:07:40]} Kb8 {[%emt 0:00:
00]} 18. Nfd2 {[%emt 0:16:03]} Nf4 {[%emt 0:00:46]} 19. Rxc6 {[%emt 0:03:28]}
bxc6 {[%emt 0:00:30]} 20. Nc5 {[%emt 0:01:38]} Rxd4 {[%emt 0:03:07]} 21. Nde4 {
[%emt 0:05:01]} Nd3 {[%emt 0:02:13]} 22. Rd1 {[%emt 0:01:55]} Nxc5 {[%emt 0:00:
00]} 23. Nxc5 {[%emt 0:00:21]} Rxd1+ {[%emt 0:00:08]} 24. Bxd1 {[%emt 0:00:05]}
Qc8 {[%emt 0:06:32]} 25. Bf3 {[%emt 0:00:23]} Rd8 {[%emt 0:00:23]} 26. Na6+ {
[%emt 0:00:33]} Kb7 {[%emt 0:00:19]} 27. Nc5+ {[%emt 0:01:43]} Kb8 {[%emt 0:00:
00]} 28. Na6+ {[%emt 0:09:09]} Kb7 {[%emt 0:00:14]} 29. Nc5+ {[%emt 0:00:06]}
Kb8 {[%emt 0:00:16]} 30. Na6+ {[%emt 0:04:03]} 1/2-1/2

[Event "44th Chess Olympiad Women 2022"]
[Site "Chennai"]
[Date "2022.08.05"]
[Round "7.78"]
[White "Reifer-Belle, Chanon"]
[Black "Alvarado Perez, Coralys M."]
[Result "1/2-1/2"]
[WhiteElo "1213"]
[BlackElo "1471"]
[Annotator "NA RC"]
[PlyCount "116"]
[EventDate "2022.??.??"]
[TimeControl "60"]

1. e4 {[%emt 0:00:04]} g6 {[%emt 0:00:18]} 2. d4 {[%emt 0:00:13]} Bg7 {[%emt 0:
00:00]} 3. Nc3 {[%emt 0:00:10]} c5 {[%emt 0:00:08]} 4. dxc5 {[%emt 0:00:31]}
Bxc3+ {[%emt 0:02:02]} 5. bxc3 {[%emt 0:00:30]} Qa5 {[%emt 0:00:27]} 6. Qd4 {
[%emt 0:02:04]} Nf6 {[%emt 0:00:26]} 7. Bd2 {[%emt 0:13:43]} Nc6 {[%emt 0:00:
00]} 8. Qe3 {[%emt 0:04:33]} Qc7 {[%emt 0:04:09]} 9. h3 {[%emt 0:02:16]} b6 {
[%emt 0:01:54]} 10. Bd3 {[%emt 0:03:58]} Ne5 {[%emt 0:02:29]} 11. cxb6 {
[%emt 0:01:22]} axb6 {[%emt 0:00:14]} 12. Nf3 {[%emt 0:04:27]} Nc4 {[%emt 0:00:
00]} 13. Qf4 {[%emt 0:08:38]} d6 {[%emt 0:00:55]} 14. O-O {[%emt 0:11:11]} Nxd2
{[%emt 0:01:26]} 15. Qxd2 {[%emt 0:00:24]} O-O {[%emt 0:01:39]} 16. Rfe1 {
[%emt 0:04:57]} Be6 {[%emt 0:01:07]} 17. a4 {[%emt 0:01:34]} Rfc8 {[%emt 0:00:
00]} 18. Ra3 {[%emt 0:02:17]} Qc5 {[%emt 0:00:59]} 19. Qc1 {[%emt 0:02:23]} Bd7
{[%emt 0:02:25]} 20. Qa1 {[%emt 0:03:36]} b5 {[%emt 0:01:21]} 21. a5 {[%emt 0:
00:00]} b4 {[%emt 0:05:06]} 22. cxb4 {[%emt 0:01:25]} Qxb4 {[%emt 0:00:08]} 23.
e5 {[%emt 0:05:35]} Nd5 {[%emt 0:04:10]} 24. Re4 {[%emt 0:01:09]} Qb8 {[%emt 0:
00:00]} 25. c4 {[%emt 0:03:29]} Nc7 {[%emt 0:06:58]} 26. exd6 {[%emt 0:00:29]}
exd6 {[%emt 0:00:10]} 27. Re7 {[%emt 0:00:27]} Be6 {[%emt 0:00:57]} 28. Ng5 {
[%emt 0:01:04]} Qb4 {[%emt 0:02:14]} 29. Nxe6 {[%emt 0:02:33]} Nxe6 {[%emt 0:
00:00]} 30. Be4 {[%emt 0:00:54]} d5 {[%emt 0:14:36]} 31. cxd5 {[%emt 0:08:52]}
Qxe7 {[%emt 0:00:53]} 32. dxe6 {[%emt 0:00:14]} Ra7 {[%emt 0:01:59]} 33. exf7+
{[%emt 0:00:31]} Qxf7 {[%emt 0:02:02]} 34. Qd4 {[%emt 0:01:04]} Rd7 {[%emt 0:
00:00]} 35. Qe3 {[%emt 0:01:34]} Rd1+ {[%emt 0:03:35]} 36. Kh2 {[%emt 0:00:06]}
Qc7+ {[%emt 0:00:58]} 37. g3 {[%emt 0:00:50]} Qc4 {[%emt 0:08:18]} 38. Qb3 {
[%emt 0:04:37]} Qxb3 {[%emt 0:00:38]} 39. Rxb3 {[%emt 0:00:02]} Ra1 {[%emt 0:
00:00]} 40. Rb5 {[%emt 0:01:15]} Rc7 {[%emt 0:00:50]} 41. Bb7 {[%emt 0:31:00]}
Rxb7 {[%emt 0:11:30]} 42. Rxb7 {[%emt 0:00:00]} Rxa5 {[%emt 0:00:05]} 43. Kg2 {
[%emt 0:00:00]} Rf5 {[%emt 0:00:11]} 44. f4 {[%emt 0:00:00]} g5 {[%emt 0:01:27]
} 45. Kf3 {[%emt 0:00:00]} gxf4 {[%emt 0:02:33]} 46. gxf4 {[%emt 0:00:00]} Rf7
{[%emt 0:00:40]} 47. Rxf7 {[%emt 0:00:00]} Kxf7 {[%emt 0:00:05]} 48. Ke4 {
[%emt 0:00:00]} Ke6 {[%emt 0:01:30]} 49. f5+ {[%emt 0:00:00]} Kf6 {[%emt 0:00:
00]} 50. h4 {[%emt 0:00:00]} Kf7 {[%emt 0:02:15]} 51. Ke5 {[%emt 0:00:00]} Ke7
{[%emt 0:00:56]} 52. f6+ {[%emt 0:00:00]} Kf8 {[%emt 0:00:59]} 53. Ke6 {
[%emt 0:00:00]} Ke8 {[%emt 0:00:21]} 54. f7+ {[%emt 0:00:00]} Kf8 {[%emt 0:00:
00]} 55. Kf6 {[%emt 0:00:00]} h6 {[%emt 0:01:14]} 56. Kg6 {[%emt 0:00:00]} h5 {
[%emt 0:00:13]} 57. Kxh5 {[%emt 0:00:00]} Kxf7 {[%emt 0:00:07]} 58. Kh6 {
[%emt 0:00:00]} Kg8 {[%emt 0:02:12]} 1/2-1/2

[Event "44th Chess Olympiad Women 2022"]
[Site "Chennai"]
[Date "2022.08.05"]
[Round "7.78"]
[White "Rivera Negron Yanira"]
[Black "Blackman, Katrina"]
[Result "1/2-1/2"]
[WhiteElo "1770"]
[BlackElo "1691"]
[Annotator "NA RC"]
[PlyCount "90"]
[EventDate "2022.??.??"]
[TimeControl "60"]

1. d4 {[%emt 0:00:04]} e6 {[%emt 0:00:02]} 2. Nf3 {[%emt 0:00:07]} f5 {[%emt 0:
00:00]} 3. Bf4 {[%emt 0:00:05]} Nf6 {[%emt 0:00:03]} 4. e3 {[%emt 0:00:09]} b6
{[%emt 0:00:03]} 5. Be2 {[%emt 0:00:23]} Bb7 {[%emt 0:00:03]} 6. Nbd2 {[%emt 0:
00:00]} Bd6 {[%emt 0:00:13]} 7. Bxd6 {[%emt 0:01:47]} cxd6 {[%emt 0:00:02]} 8.
c4 {[%emt 0:01:17]} Nc6 {[%emt 0:05:01]} 9. h3 {[%emt 0:01:58]} Rc8 {[%emt 0:
00:00]} 10. a3 {[%emt 0:07:51]} Ne7 {[%emt 0:07:07]} 11. O-O {[%emt 0:01:57]}
O-O {[%emt 0:00:06]} 12. b4 {[%emt 0:01:32]} Ng6 {[%emt 0:04:15]} 13. Qb3 {
[%emt 0:02:59]} Rc7 {[%emt 0:07:44]} 14. a4 {[%emt 0:04:20]} Ne4 {[%emt 0:00:
00]} 15. a5 {[%emt 0:04:55]} Nh4 {[%emt 0:05:47]} 16. Nxe4 {[%emt 0:03:47]}
Nxf3+ {[%emt 0:03:34]} 17. Bxf3 {[%emt 0:00:23]} fxe4 {[%emt 0:02:10]} 18. Be2
{[%emt 0:02:05]} d5 {[%emt 0:00:47]} 19. c5 {[%emt 0:02:04]} bxc5 {[%emt 0:00:
00]} 20. bxc5 {[%emt 0:00:32]} d6 {[%emt 0:01:13]} 21. Rfc1 {[%emt 0:06:27]}
dxc5 {[%emt 0:01:10]} 22. Rxc5 {[%emt 0:01:02]} Rxc5 {[%emt 0:00:18]} 23. dxc5
{[%emt 0:00:13]} Qf6 {[%emt 0:00:02]} 24. Rf1 {[%emt 0:02:28]} Bc6 {[%emt 0:00:
00]} 25. Ba6 {[%emt 0:04:49]} Qf7 {[%emt 0:08:41]} 26. Qc3 {[%emt 0:08:31]} Qc7
{[%emt 0:06:32]} 27. Rb1 {[%emt 0:08:44]} Rd8 {[%emt 0:07:17]} 28. Qb4 {
[%emt 0:17:56]} h6 {[%emt 0:05:08]} 29. Be2 {[%emt 0:08:06]} Kh8 {[%emt 0:00:
00]} 30. a6 {[%emt 0:03:18]} Bd7 {[%emt 0:10:04]} 31. Qc3 {[%emt 0:02:49]} Bc6
{[%emt 0:01:29]} 32. Rb3 {[%emt 0:01:04]} e5 {[%emt 0:01:01]} 33. Qb4 {[%emt 0:
00:00]} d4 {[%emt 0:00:38]} 34. exd4 {[%emt 0:00:40]} exd4 {[%emt 0:00:02]} 35.
Bg4 {[%emt 0:00:33]} d3 {[%emt 0:00:39]} 36. Rb2 {[%emt 0:00:33]} Qe5 {[%emt 0:
00:00]} 37. Qa5 {[%emt 0:00:35]} Rd5 {[%emt 0:01:07]} 38. Rb1 {[%emt 0:00:29]}
Rxc5 {[%emt 0:00:54]} 39. Qd8+ {[%emt 0:00:30]} Kh7 {[%emt 0:01:23]} 40. g3 {
[%emt 0:00:31]} Rd5 {[%emt 0:00:40]} 41. Qc8 {[%emt 0:01:05]} Bb5 {[%emt 0:00:
00]} 42. Be6 {[%emt 0:02:44]} Rc5 {[%emt 0:10:41]} 43. Qg8+ {[%emt 0:04:47]}
Kg6 {[%emt 0:00:04]} 44. Qf7+ {[%emt 0:01:02]} Kh7 {[%emt 0:00:09]} 45. Qg8+ {
[%emt 0:03:15]} Kg6 {[%emt 0:00:11]} 1/2-1/2

[Event "44th Chess Olympiad Women 2022"]
[Site "Chennai"]
[Date "2022.08.05"]
[Round "7.78"]
[White "Wilson, Hannah"]
[Black "Vega Jimenez, Keyshla M."]
[Result "0-1"]
[WhiteElo "1556"]
[BlackElo "1653"]
[Annotator "NA RC"]
[PlyCount "125"]
[EventDate "2022.??.??"]
[TimeControl "60"]

1. e4 {[%emt 0:00:03]} e5 {[%emt 0:00:07]} 2. Nf3 {[%emt 0:00:09]} Nc6 {
[%emt 0:00:07]} 3. d4 {[%emt 0:00:17]} exd4 {[%emt 0:00:08]} 4. Bc4 {[%emt 0:
00:00]} Nf6 {[%emt 0:00:36]} 5. e5 {[%emt 0:00:12]} d5 {[%emt 0:00:40]} 6. Bb5
{[%emt 0:00:33]} Ne4 {[%emt 0:00:50]} 7. Nxd4 {[%emt 0:00:23]} Bd7 {[%emt 0:00:
00]} 8. Bxc6 {[%emt 0:00:39]} bxc6 {[%emt 0:00:16]} 9. O-O {[%emt 0:00:40]} Bc5
{[%emt 0:01:31]} 10. f3 {[%emt 0:00:50]} Ng5 {[%emt 0:00:49]} 11. f4 {[%emt 0:
00:00]} Ne4 {[%emt 0:00:40]} 12. Be3 {[%emt 0:00:47]} Bb6 {[%emt 0:00:51]} 13.
Nd2 {[%emt 0:02:32]} Nxd2 {[%emt 0:01:45]} 14. Qxd2 {[%emt 0:00:18]} c5 {
[%emt 0:02:19]} 15. Nb3 {[%emt 0:08:49]} d4 {[%emt 0:04:17]} 16. Bf2 {[%emt 0:
00:00]} Bc6 {[%emt 0:03:57]} 17. f5 {[%emt 0:10:51]} Qd5 {[%emt 0:05:17]} 18.
Qg5 {[%emt 0:04:35]} h6 {[%emt 0:05:52]} 19. Qg4 {[%emt 0:03:54]} O-O-O {
[%emt 0:05:54]} 20. Rfe1 {[%emt 0:13:02]} h5 {[%emt 0:07:45]} 21. Qh3 {[%emt 0:
00:00]} Rde8 {[%emt 0:05:30]} 22. a4 {[%emt 0:08:41]} a5 {[%emt 0:02:11]} 23.
e6 {[%emt 0:04:49]} fxe6 {[%emt 0:04:36]} 24. fxe6 {[%emt 0:03:07]} g5 {
[%emt 0:01:14]} 25. Qf3 {[%emt 0:07:08]} Qd6 {[%emt 0:17:29]} 26. Qe2 {[%emt 0:
00:00]} h4 {[%emt 0:04:10]} 27. Qe5 {[%emt 0:06:18]} g4 {[%emt 0:09:32]} 28.
Nd2 {[%emt 0:09:56]} Bd5 {[%emt 0:04:36]} 29. Qxd6 {[%emt 0:01:37]} cxd6 {
[%emt 0:00:06]} 30. e7 {[%emt 0:00:50]} Kd7 {[%emt 0:00:44]} 31. Ne4 {[%emt 0:
00:00]} Rh6 {[%emt 0:01:38]} 32. Rad1 {[%emt 0:02:02]} Bc6 {[%emt 0:03:26]} 33.
b3 {[%emt 0:01:04]} d5 {[%emt 0:03:48]} 34. Nd2 {[%emt 0:01:11]} Rxe7 {[%emt 0:
00:00]} 35. Rxe7+ {[%emt 0:00:21]} Kxe7 {[%emt 0:00:06]} 36. Re1+ {[%emt 0:00:
00]} Kd6 {[%emt 0:01:35]} 37. Kf1 {[%emt 0:01:12]} Rf6 {[%emt 0:00:41]} 38. Kg1
{[%emt 0:00:31]} Rh6 {[%emt 0:00:40]} 39. Kf1 {[%emt 0:00:14]} Bd8 {[%emt 0:00:
00]} 40. Re2 {[%emt 0:00:54]} Bg5 {[%emt 0:00:55]} 41. Ke1 {[%emt 0:30:19]} Re6
{[%emt 0:31:01]} 42. Rxe6+ {[%emt 0:00:00]} Kxe6 {[%emt 0:00:00]} 43. Ke2 {
[%emt 0:00:00]} Be8 {[%emt 0:00:00]} 44. Be1 {[%emt 0:00:00]} Bg6 {[%emt 0:00:
00]} 45. Kd1 {[%emt 0:00:00]} Bd8 {[%emt 0:00:00]} 46. Nb1 {[%emt 0:00:00]} Be4
{[%emt 0:00:00]} 47. g3 {[%emt 0:00:00]} h3 {[%emt 0:00:00]} 48. Bd2 {[%emt 0:
00:00]} c4 {[%emt 0:00:00]} 49. Na3 {[%emt 0:00:00]} c3 {[%emt 0:00:00]} 50.
Bh6 {[%emt 0:00:00]} Bc7 {[%emt 0:00:00]} 51. Nb5 {[%emt 0:00:00]} Bxg3 {
[%emt 0:00:00]} 52. Nxd4+ {[%emt 0:00:00]} Kf6 {[%emt 0:00:00]} 53. Ne2 {
[%emt 0:00:00]} Bxh2 {[%emt 0:00:00]} 54. Be3 {[%emt 0:00:00]} Bf3 {[%emt 0:00:
00]} 55. Ke1 {[%emt 0:00:00]} Bxe2 {[%emt 0:00:00]} 56. Kxe2 {[%emt 0:00:00]}
Be5 {[%emt 0:00:00]} 57. Kf1 {[%emt 0:00:00]} d4 {[%emt 0:00:00]} 58. Bf2 {
[%emt 0:00:00]} g3 {[%emt 0:00:00]} 59. Be1 {[%emt 0:00:00]} d3 {[%emt 0:01:07]
} 60. cxd3 {[%emt 0:00:00]} g2+ {[%emt 0:00:15]} 61. Kg1 {[%emt 0:00:00]} Bd4+
{[%emt 0:00:07]} 62. Bf2 {[%emt 0:00:00]} Bxf2+ {[%emt 0:00:06]} 63. Kxf2 {
[%emt 0:00:00]} 0-1

[Event "44th Chess Olympiad Women 2022"]
[Site "Chennai"]
[Date "2022.08.06"]
[Round "8.1"]
[White "Buksa, Nataliya"]
[Black "Tania, Sachdev"]
[Result "1/2-1/2"]
[WhiteElo "2401"]
[BlackElo "2399"]
[Annotator "TA"]
[PlyCount "63"]
[EventDate "2022.??.??"]
[TimeControl "60"]

{[%evp 16,63,10,8,20,16,26,12,44,14,30,22,8,6,29,16,33,33,22,16,31,9,20,31,38,
16,35,16,15,17,14,10,11,18,8,16,9,0,0,0,0,0,0,0,0,0,5,0,0,0]} 1. e4 {[%emt 0:
00:00]} e5 {[%emt 0:00:39]} 2. Nf3 {[%emt 0:00:06]} Nc6 {[%emt 0:00:05]} 3. Bb5
{[%emt 0:00:26]} a6 {[%emt 0:00:07]} 4. Ba4 {[%emt 0:00:05]} Nf6 {[%emt 0:00:
00]} 5. O-O {[%emt 0:00:08]} Be7 {[%emt 0:00:25]} 6. d3 {[%emt 0:00:09]} b5 {
[%emt 0:01:30]} 7. Bb3 {[%emt 0:00:29]} d6 {[%emt 0:02:03]} 8. a3 {[%emt 0:00:
00]} O-O {[%emt 0:01:06]} 9. Nc3 {[%emt 0:00:03]} h6 {[%emt 0:02:22] C77: Ruy
Lopez: 3...a6 4 Ba4 Nf6, unusual lines.} 10. Be3 {[%emt 0:09:59]} Re8 {[%emt 0:
00:00]} 11. Nd5 {[%emt 0:02:54]} Bb7 {[%emt 0:04:02]} 12. Qd2 {[%emt 0:12:39]
[%cal Ye3h6]} Bf8 {[%emt 0:06:27]} 13. h3 {[%emt 0:00:35] [#]} Nxd5 $146 {
[%emt 0:07:41]} ({Predecessor:} 13... Nb8 14. Nxf6+ Qxf6 15. Nh2 Qd8 16. f4 Nd7
17. Qf2 d5 18. exd5 e4 19. Ng4 exd3 {0-1 (76) Petrossian,A (2408)-Loiseau,Q 
(2375) Marseille 2014}) 14. Bxd5 {[%emt 0:00:05]} Qd7 {[%emt 0:00:07]} 15. c4 {
[%emt 0:16:36]} Nd8 {[%emt 0:02:36] [#] White must now prevent ...c6.} 16. Bxb7
{[%emt 0:02:33]} Nxb7 {[%emt 0:00:13]} 17. b4 {[%emt 0:00:42][%cal Ya3a4]} c5 {
[%emt 0:15:37]} 18. Rab1 {[%emt 0:10:57]} Qc6 {[%emt 0:12:57]} 19. Qc2 {
[%emt 0:02:00]} cxb4 {[%emt 0:07:47]} 20. axb4 {[%emt 0:00:58][%cal Ya3b4,
Yb4a5,Ya5a6]} a5 {[%emt 0:04:11]} 21. bxa5 {[%emt 0:01:19]} bxc4 {[%emt 0:00:
48] The position is equal.} 22. Rb6 {[%emt 0:02:25]} Qc7 {[%emt 0:00:00]} 23.
a6 {[%emt 0:11:47]} Nc5 {[%emt 0:00:25]} 24. Bxc5 {[%emt 0:00:11]} Qxc5 {
[%emt 0:01:34]} 25. Rfb1 {[%emt 0:00:35]} c3 {[%emt 0:00:25]} 26. R1b5 {
[%emt 0:06:29]} Qa3 {[%emt 0:01:32]} 27. Rb3 {[%emt 0:02:01]} Qa1+ {[%emt 0:00:
00]} 28. Rb1 {[%emt 0:00:03]} Qa5 {[%emt 0:01:10]} 29. R1b5 {[%emt 0:04:14]}
Qa1+ {[%emt 0:00:06]} 30. Rb1 {[%emt 0:00:05]} Qa5 {[%emt 0:00:05]} 31. R1b5 {
[%emt 0:07:56]} Qa1+ {[%emt 0:00:37]} 32. Rb1 {[%emt 0:00:08] A balanced but
interesting game. Weighted Error Value: White=0.07 (flawless) /Black=0.07 
(flawless)} 1/2-1/2

[Event "44th Chess Olympiad Women 2022"]
[Site "Chennai"]
[Date "2022.08.06"]
[Round "8.1"]
[White "Koneru, Humpy"]
[Black "Muzychuk, Mariya"]
[Result "1/2-1/2"]
[WhiteElo "2586"]
[BlackElo "2540"]
[Annotator "TA"]
[PlyCount "68"]
[EventDate "2022.??.??"]
[TimeControl "60"]

{[%evp 15,68,6,0,-4,0,0,0,-11,20,36,81,69,80,77,83,0,0,0,0,0,22,22,25,24,24,22,
36,29,29,34,64,24,53,0,0,0,54,20,61,73,113,0,0,0,0,0,0,0,0,0,0,0,0,0,0]} 1. d4
{[%emt 0:00:06]} Nf6 {[%emt 0:00:05]} 2. c4 {[%emt 0:00:10]} e6 {[%emt 0:00:04]
} 3. Nc3 {[%emt 0:01:13]} Bb4 {[%emt 0:00:15]} 4. Qc2 {[%emt 0:01:15]} d5 {
[%emt 0:01:07]} 5. a3 {[%emt 0:06:45]} Bxc3+ {[%emt 0:00:12]} 6. Qxc3 {[%emt 0:
00:00]} O-O {[%emt 0:00:35]} 7. e3 {[%emt 0:03:07]} b6 {[%emt 0:04:18]} 8. Nf3
{[%emt 0:01:45]} Bb7 {[%emt 0:00:44]} 9. b4 {[%emt 0:04:21] E32: Nimzo-Indian:
Classical (4 Qc2): 4...0-0.} c5 {[%emt 0:10:08]} 10. dxc5 {[%emt 0:06:58]} Ne4
{[%emt 0:00:33]} 11. Qc2 {[%emt 0:02:29]} bxc5 {[%emt 0:00:33]} (11... a5 $5 {
[%cal Ra5b4]}) 12. Bd3 {[%emt 0:04:36]} cxb4 {[%emt 0:09:27]} 13. axb4 {
[%emt 0:01:49]} Nc6 {[%emt 0:00:37]} 14. Ba3 {[%emt 0:07:01]} ({Much worse is} 
14. Bxe4 $6 dxe4 15. Qxe4 Rb8 $11) 14... a5 {[%emt 0:00:21] [#]} 15. b5 $146 {
[%emt 0:00:33]} ({White should try} 15. cxd5 $16 exd5 16. b5) ({Predecessor:} 
15. cxd5 exd5 16. b5 Nb4 17. Bxb4 axb4 18. O-O Ra3 19. Bxe4 dxe4 20. Nd4 Qa5
21. Qb2 {½-½ (78) Mrkonjic,N (2383)-Bender,I (2312) Djakovo 2006}) 15... Nb4
$11 {[%emt 0:00:41]} 16. Bxb4 {[%emt 0:01:16]} axb4 {[%emt 0:00:05]} 17. O-O {
[%emt 0:00:43]} b3 {[%emt 0:10:44]} 18. Qxb3 {[%emt 0:05:55] Bxe4 is the
strong threat.} Nc5 {[%emt 0:02:57]} 19. Qc3 {[%emt 0:03:28]} Nxd3 {[%emt 0:00:
00]} 20. Rxa8 {[%emt 0:05:17]} Qxa8 {[%emt 0:06:19]} 21. Qxd3 {[%emt 0:00:16]
Strongly threatening c5.} dxc4 {[%emt 0:10:06]} 22. Qxc4 {[%emt 0:00:03]} Rc8 {
[%emt 0:09:51]} 23. Qg4 {[%emt 0:03:45] White is more active.} (23. Qb4 $5 {
[%cal Rb5b6]}) 23... Rc5 {[%emt 0:00:34]} 24. Nd4 {[%emt 0:02:15]} (24. Qb4 $14
Qf8 25. Qa4) 24... h6 {[%emt 0:00:11] Threatens to win with ...Rg5.} 25. h4 {
[%emt 0:04:27] Prevents Rg5.} Be4 {[%emt 0:02:58]} (25... Qd8 $11) 26. Rd1 $14
{[%emt 0:06:11]} h5 {[%emt 0:03:15]} ({Don't do} 26... e5 27. Ne6 $1 fxe6 28.
Rd7 $16) 27. Qg3 $40 {[%emt 0:16:59] White has strong attack.} e5 {[%emt 0:05:
10] [#]} 28. Nc6 {[%emt 0:01:04]} (28. Nf5 $1 $16 Bxf5 29. Qg5) 28... Bxc6 $11
{[%emt 0:00:46] The position is equal.} 29. bxc6 {[%emt 0:00:08]} Qxc6 {
[%emt 0:00:12] KQR-KQR} 30. Qg5 {[%emt 0:00:00]} e4 {[%emt 0:03:41]} 31. Rd8+ {
[%emt 0:01:39]} Kh7 {[%emt 0:00:05]} 32. Qf4 {[%emt 0:00:07]} Qe6 {[%emt 0:08:
01]} 33. Qb8 {[%emt 0:05:40]} Qe5 {[%emt 0:00:00]} 34. Qxe5 {[%emt 0:00:40]}
Rxe5 {[%emt 0:00:03] Weighted Error Value: White=0.14 (very precise) /Black=0.
15 (very precise)} 1/2-1/2

[Event "44th Chess Olympiad Women 2022"]
[Site "Chennai"]
[Date "2022.08.06"]
[Round "8.1"]
[White "Muzychuk, Anna"]
[Black "Harika, Dronavalli"]
[Result "1/2-1/2"]
[WhiteElo "2529"]
[BlackElo "2517"]
[Annotator "TA"]
[PlyCount "98"]
[EventDate "2022.??.??"]
[TimeControl "60"]

{[%evp 11,98,12,4,-11,-4,-13,-12,-8,-12,-20,-19,-16,-25,-21,-12,-33,-8,-27,0,
-53,0,-20,-18,-49,-5,-21,-9,-25,-16,-72,-65,-93,-88,-88,-84,-94,-88,-80,-89,
-85,-88,-97,-74,-71,-77,-72,-72,-77,-71,-74,-72,-82,-77,-65,-27,-44,-47,-47,
-48,-59,-59,-58,-55,-64,-30,-30,-30,-35,-35,-35,-35,-35,-35,-42,-42,-42,-35,
-42,-42,-42,-31,-50,-20,-23,0,-50,0,-25,0]} 1. e4 {[%emt 0:00:03]} e5 {[%emt 0:
00:00]} 2. Nf3 {[%emt 0:00:05]} Nc6 {[%emt 0:00:05]} 3. Bc4 {[%emt 0:01:06]}
Bc5 {[%emt 0:00:28]} 4. c3 {[%emt 0:03:06]} Nf6 {[%emt 0:02:46][%cal Yg8f6,
Yf6e4,Ye4c5]} 5. d4 {[%emt 0:00:10]} exd4 {[%emt 0:00:32]} 6. cxd4 {[%emt 0:00:
11]} Bb4+ {[%emt 0:00:47]} 7. Nbd2 $1 {[%emt 0:00:17] is more profitable than
7.Bd2 at the moment. C54: Giuoco Piano: 4 c3 Nf6, main lines with 5 d4 and 5
d3.} Bxd2+ {[%emt 0:01:25]} 8. Bxd2 {[%emt 0:04:20]} Nxe4 {[%emt 0:01:16]} 9.
d5 {[%emt 0:00:13] The position is equal.} Ne7 {[%emt 0:00:00]} 10. Bb4 {
[%emt 0:03:43]} d6 {[%emt 0:13:50]} 11. O-O {[%emt 0:07:03]} O-O {[%emt 0:02:
17]} 12. Re1 {[%emt 0:00:54]} Nc5 {[%emt 0:01:50]} 13. Bc3 {[%emt 0:03:43] [#]}
Bd7 $146 {[%emt 0:12:36]} ({Predecessor:} 13... a5 14. Qd2 a4 15. Qf4 Bd7 16.
Nd4 Ng6 17. Qg3 Qh4 18. Qxh4 Nxh4 19. Nb5 Rfc8 {0-1 (42) Congiu,M (2301)
-Korneev,O (2569) Linares 2015}) 14. b3 $1 {[%emt 0:11:50]} Re8 {[%emt 0:08:32]
} (14... Ng6 {looks sharper.} 15. Qd4 f6 16. Ng5 b5) 15. h3 {[%emt 0:07:13]} (
15. Ng5 $11 f6 16. Ne6 Bxe6 17. dxe6) 15... h6 {[%emt 0:11:17]} ({Black should
try} 15... a5 $15) 16. Qd2 {[%emt 0:04:19]} Ng6 {[%emt 0:00:00]} 17. Bd4 {
[%emt 0:03:02]} a5 {[%emt 0:03:59]} (17... Ne4 $5 {[%cal Re4d2]} 18. Qb2 Ng5
19. Rxe8+ (19. Bxg7 $2 Nxf3+ 20. Kf1 Rxe1+ 21. Rxe1 Nxe1 $19) 19... Bxe8 $11)
18. Rxe8+ {[%emt 0:03:03]} Qxe8 {[%emt 0:00:12]} 19. Re1 {[%emt 0:00:00]} Qf8 {
[%emt 0:00:08]} 20. Bc3 {[%emt 0:02:27]} (20. Qc3 $11 {keeps the balance.})
20... b6 $17 {[%emt 0:00:20]} 21. Nd4 {[%emt 0:14:05][%cal Yd4e6] [#]} Re8 $1 {
[%emt 0:01:48] Prevents Ne6.} 22. f3 {[%emt 0:01:23]} Rxe1+ {[%emt 0:01:10]}
23. Qxe1 {[%emt 0:00:02]} Qe7 {[%emt 0:01:26]} 24. Qxe7 {[%emt 0:11:09]} Nxe7 {
[%emt 0:00:06][%cal Yg6e7,Ye7f5,Yf5e3]} 25. a3 {[%emt 0:01:02]} Nf5 {[%emt 0:
02:05]} 26. b4 {[%emt 0:05:48]} axb4 {[%emt 0:00:00]} 27. axb4 {[%emt 0:00:03]}
Na4 {[%emt 0:01:17]} 28. Ba1 {[%emt 0:00:06]} Ne3 {[%emt 0:02:23]} 29. Bb3 {
[%emt 0:00:14] [#] Black must now prevent Kf2.} b5 $1 {[%emt 0:00:31] And now .
..Nb6 would win.} 30. Kf2 {[%emt 0:03:02]} Nc4 {[%emt 0:00:07] Pair of Knights!
} 31. Nc2 {[%emt 0:00:36]} Nab6 {[%emt 0:05:51]} 32. Ne3 {[%emt 0:00:10]} Bc8 {
[%emt 0:02:43]} 33. Bd4 {[%emt 0:00:24]} Bb7 {[%emt 0:03:17]} 34. Bxc4 {
[%emt 0:06:10]} Nxc4 {[%emt 0:00:34]} 35. Nxc4 {[%emt 0:00:07]} bxc4 $15 {
[%emt 0:00:05] Endgame KB-KB} 36. Ba7 {[%emt 0:00:07]} Bxd5 {[%emt 0:01:05]}
37. Bb8 {[%emt 0:00:08]} Kf8 {[%emt 0:00:00]} 38. Bxc7 {[%emt 0:00:18]} Ke7 {
[%emt 0:00:04]} 39. Ke3 {[%emt 0:01:08]} Kd7 {[%emt 0:00:33]} 40. Bb6 {[%emt 0:
00:24]} Kc6 {[%emt 0:00:19]} 41. Bd4 {[%emt 0:30:49]} g6 {[%emt 0:30:17]} 42.
Kd2 {[%emt 0:01:32]} Kb5 {[%emt 0:00:00]} 43. Kc3 {[%emt 0:00:05]} h5 {[%emt 0:
00:24]} 44. Bf6 {[%emt 0:01:10]} Be6 {[%emt 0:00:41]} 45. g4 {[%emt 0:00:49]}
hxg4 {[%emt 0:01:42]} 46. hxg4 {[%emt 0:00:35]} Kc6 {[%emt 0:00:07]} 47. Kd4 {
[%emt 0:00:16]} Kb5 {[%emt 0:00:00]} 48. Kc3 $1 {[%emt 0:00:05]} Kc6 {[%emt 0:
00:29]} 49. Kd4 {[%emt 0:00:06]} Kb5 {[%emt 0:00:04] Weighted Error Value:
White=0.10 (very precise) /Black=0.09 (flawless)} 1/2-1/2